[Event "*** Titled Tuesday Blitz"]
[Site "Chess.com"]
[Date "2020.10.20"]
[Round "6"]
[White "KetiGrant"]
[Black "Zhani-Z"]
[Result "1-0"]
[WhiteElo "2330"]
[BlackElo "2529"]
[TimeControl "180+1"]
[EndTime "11:09:00 PDT"]
[Termination "KetiGrant won on time"]

1. e4 {[%clk 0:03:00.9]} 1... e5 {[%clk 0:02:59.6]} 2. Nf3 {[%clk 0:03:00.1]}
2... Nc6 {[%clk 0:03:00.2]} 3. Bb5 {[%clk 0:02:59.8]} 3... a6 {[%clk 0:03:00.7]}
4. Ba4 {[%clk 0:02:59.8]} 4... d6 {[%clk 0:02:59.9]} 5. c3 {[%clk 0:02:57.5]}
5... f5 {[%clk 0:02:53.7]} 6. exf5 {[%clk 0:02:49.5]} 6... Bxf5 {[%clk
0:02:54.6]} 7. d4 {[%clk 0:02:48.6]} 7... e4 {[%clk 0:02:52.2]} 8. Ng5 {[%clk
0:02:26.9]} 8... Be7 {[%clk 0:02:15.8]} 9. d5 {[%clk 0:02:13.3]} 9... b5 {[%clk
0:02:14.4]} 10. Bc2 {[%clk 0:02:09.6]} 10... Bxg5 {[%clk 0:02:12.9]} 11. Qh5+
{[%clk 0:02:08.4]} 11... Bg6 {[%clk 0:01:50.7]} 12. Qxg5 {[%clk 0:02:07.7]}
12... Nce7 {[%clk 0:01:23.6]} 13. O-O {[%clk 0:02:01.8]} 13... Nf6 {[%clk
0:01:23.1]} 14. c4 {[%clk 0:01:56.3]} 14... bxc4 {[%clk 0:01:13.4]} 15. Nc3
{[%clk 0:01:56]} 15... O-O {[%clk 0:01:10.9]} 16. Be3 {[%clk 0:01:44.8]} 16...
Qe8 {[%clk 0:00:44.1]} 17. Bd4 {[%clk 0:01:40.7]} 17... h6 {[%clk 0:00:42.3]}
18. Qd2 {[%clk 0:01:28.2]} 18... e3 {[%clk 0:00:23.5]} 19. Bxe3 {[%clk
0:01:25.4]} 19... Bxc2 {[%clk 0:00:22.7]} 20. Qxc2 {[%clk 0:01:26.3]} 20...
Nexd5 {[%clk 0:00:22.3]} 21. Nxd5 {[%clk 0:01:23.2]} 21... Nxd5 {[%clk
0:00:22.7]} 22. Qxc4 {[%clk 0:01:22.3]} 22... Qf7 {[%clk 0:00:22.8]} 23. Bd2
{[%clk 0:01:13]} 23... a5 {[%clk 0:00:18.3]} 24. Rac1 {[%clk 0:01:11]} 24... a4
{[%clk 0:00:16.1]} 25. f4 {[%clk 0:01:01.9]} 25... Rfb8 {[%clk 0:00:15.2]} 26.
Rc2 {[%clk 0:00:58.5]} 26... c5 {[%clk 0:00:15.2]} 27. f5 {[%clk 0:00:56.1]}
27... Nb4 {[%clk 0:00:15.4]} 28. Bxb4 {[%clk 0:00:50.2]} 28... Rxb4 {[%clk
0:00:11]} 29. Qd3 {[%clk 0:00:46.5]} 29... Rd4 {[%clk 0:00:10]} 30. Qf3 {[%clk
0:00:45]} 30... Rf8 {[%clk 0:00:08.5]} 31. Qc6 {[%clk 0:00:37.4]} 31... Qd5
{[%clk 0:00:06.9]} 32. Qd7 {[%clk 0:00:34.3]} 32... Rd1 {[%clk 0:00:05.2]} 33.
Rf2 {[%clk 0:00:32.1]} 33... Rxf1+ {[%clk 0:00:05.3]} 34. Rxf1 {[%clk
0:00:32.2]} 34... Qxa2 {[%clk 0:00:03.9]} 35. Qxd6 {[%clk 0:00:30.7]} 35... Qxb2
{[%clk 0:00:04.2]} 36. Qxc5 {[%clk 0:00:29.8]} 36... a3 {[%clk 0:00:04.4]} 37.
Qd5+ {[%clk 0:00:22.8]} 37... Kh8 {[%clk 0:00:04]} 38. h3 {[%clk 0:00:16.3]}
38... a2 {[%clk 0:00:03.5]} 39. Qa5 {[%clk 0:00:14.9]} 39... Qc2 {[%clk
0:00:01.2]} 40. Kh1 {[%clk 0:00:13.8]} 40... Qe2 {[%clk 0:00:01]} 41. Kg1 {[%clk
0:00:13.3]} 41... Rf6 {[%clk 0:00:01.1]} 42. Qa8+ {[%clk 0:00:11.7]} 1-0

[Event "*** Titled Tuesday Blitz"]
[Site "Chess.com"]
[Date "2020.10.20"]
[Round "6"]
[White "Legendinunknown"]
[Black "Das_Virus_2020"]
[Result "1-0"]
[WhiteElo "2600"]
[BlackElo "2424"]
[TimeControl "180+1"]
[EndTime "11:09:00 PDT"]
[Termination "Legendinunknown won by resignation"]

1. d4 {[%clk 0:03:00.9]} 1... Nf6 {[%clk 0:02:59.4]} 2. c4 {[%clk 0:03:00.4]}
2... c5 {[%clk 0:02:59.8]} 3. d5 {[%clk 0:03:00.3]} 3... b5 {[%clk 0:03:00.3]}
4. Nf3 {[%clk 0:02:57]} 4... Bb7 {[%clk 0:02:57.1]} 5. Nbd2 {[%clk 0:02:50.2]}
5... b4 {[%clk 0:02:56.4]} 6. e4 {[%clk 0:02:49.9]} 6... d6 {[%clk 0:02:56.6]}
7. Bd3 {[%clk 0:02:49.6]} 7... e5 {[%clk 0:02:56.2]} 8. O-O {[%clk 0:02:49.1]}
8... g6 {[%clk 0:02:56.4]} 9. g3 {[%clk 0:02:43.2]} 9... Bg7 {[%clk 0:02:56]}
10. Nh4 {[%clk 0:02:42.4]} 10... O-O {[%clk 0:02:53.2]} 11. Qe1 {[%clk
0:02:42.1]} 11... Bc8 {[%clk 0:02:32.7]} 12. f4 {[%clk 0:02:41]} 12... exf4
{[%clk 0:02:27.9]} 13. gxf4 {[%clk 0:02:39.8]} 13... Nh5 {[%clk 0:02:21.6]} 14.
Ndf3 {[%clk 0:02:32]} 14... Bh3 {[%clk 0:02:11.9]} 15. Rf2 {[%clk 0:02:26]}
15... Bg4 {[%clk 0:01:46.1]} 16. Rg2 {[%clk 0:02:19.7]} 16... Bxf3 {[%clk
0:01:43.4]} 17. Nxf3 {[%clk 0:02:20.6]} 17... Nd7 {[%clk 0:01:41.8]} 18. Be3
{[%clk 0:02:15.7]} 18... Qe7 {[%clk 0:01:38.2]} 19. Qd2 {[%clk 0:02:14.2]} 19...
Rae8 {[%clk 0:01:35.6]} 20. Re1 {[%clk 0:02:13.5]} 20... Qf6 {[%clk 0:01:29.3]}
21. Rf1 {[%clk 0:01:57.9]} 21... a5 {[%clk 0:01:27.6]} 22. Ng5 {[%clk
0:01:55.7]} 22... a4 {[%clk 0:01:18]} 23. Qf2 {[%clk 0:01:41.3]} 23... a3 {[%clk
0:01:15.5]} 24. bxa3 {[%clk 0:01:40.1]} 24... bxa3 {[%clk 0:01:08.8]} 25. Qh4
{[%clk 0:01:37.7]} 25... Qc3 {[%clk 0:01:05.7]} 26. Rd1 {[%clk 0:01:36.7]} 26...
Rb8 {[%clk 0:01:03.1]} 27. e5 {[%clk 0:01:32.6]} 27... dxe5 {[%clk 0:01:00]} 28.
Nxh7 {[%clk 0:01:27.9]} 28... e4 {[%clk 0:00:56.6]} 29. Nxf8 {[%clk 0:01:25.3]}
29... Nxf8 {[%clk 0:00:53.1]} 30. Rc2 {[%clk 0:01:24.6]} 30... Qa5 {[%clk
0:00:43.4]} 31. Be2 {[%clk 0:01:22.5]} 31... Rb2 {[%clk 0:00:42]} 32. Rcd2
{[%clk 0:01:10]} 32... Qc3 {[%clk 0:00:40.3]} 33. Qf2 {[%clk 0:01:05.6]} 33...
Nd7 {[%clk 0:00:36.3]} 34. Bxh5 {[%clk 0:01:01]} 34... gxh5 {[%clk 0:00:35.6]}
35. d6 {[%clk 0:01:00.3]} 35... Nf6 {[%clk 0:00:27]} 36. Bxc5 {[%clk 0:00:50.7]}
36... Ng4 {[%clk 0:00:25]} 37. d7 {[%clk 0:00:50.3]} 37... Nxf2 {[%clk
0:00:19.6]} 38. d8=Q+ {[%clk 0:00:50]} 38... Kh7 {[%clk 0:00:19.6]} 39. Rxf2
{[%clk 0:00:40.5]} 39... e3 {[%clk 0:00:16.8]} 40. Bxe3 {[%clk 0:00:29.7]} 40...
Qxe3 {[%clk 0:00:14.2]} 41. Qd3+ {[%clk 0:00:30.1]} 41... Qxd3 {[%clk 0:00:12]}
42. Rxd3 {[%clk 0:00:31]} 42... Bf8 {[%clk 0:00:11.1]} 43. Rxb2 {[%clk 0:00:27]}
43... axb2 {[%clk 0:00:09.7]} 44. Rb3 {[%clk 0:00:27.5]} 44... Bg7 {[%clk
0:00:09.1]} 45. Kg2 {[%clk 0:00:24.5]} 45... Kg6 {[%clk 0:00:10]} 46. a4 {[%clk
0:00:24.4]} 46... Kf5 {[%clk 0:00:09.4]} 47. a5 {[%clk 0:00:24.8]} 47... Kxf4
{[%clk 0:00:08.3]} 48. a6 {[%clk 0:00:25]} 48... Bd4 {[%clk 0:00:08.7]} 49. Rxb2
{[%clk 0:00:24.8]} 1-0

[Event "*** Titled Tuesday Blitz"]
[Site "Chess.com"]
[Date "2020.10.20"]
[Round "6"]
[White "mirceaparligras"]
[Black "NeverW84M8"]
[Result "1-0"]
[WhiteElo "2652"]
[BlackElo "2460"]
[TimeControl "180+1"]
[EndTime "11:09:02 PDT"]
[Termination "mirceaparligras won by checkmate"]

1. d4 {[%clk 0:03:00.9]} 1... Nf6 {[%clk 0:02:59.8]} 2. c4 {[%clk 0:03:00.7]}
2... c5 {[%clk 0:02:59.6]} 3. d5 {[%clk 0:03:00.8]} 3... e6 {[%clk 0:03:00.2]}
4. Nc3 {[%clk 0:03:00.3]} 4... exd5 {[%clk 0:03:00.7]} 5. cxd5 {[%clk
0:03:01.2]} 5... d6 {[%clk 0:03:01.3]} 6. Nf3 {[%clk 0:03:01.3]} 6... g6 {[%clk
0:03:01.7]} 7. Nd2 {[%clk 0:03:01.5]} 7... Bg7 {[%clk 0:03:01.6]} 8. e4 {[%clk
0:03:02]} 8... O-O {[%clk 0:03:01.7]} 9. Be2 {[%clk 0:03:02.5]} 9... a6 {[%clk
0:03:00.8]} 10. a4 {[%clk 0:03:01.4]} 10... Re8 {[%clk 0:02:55.4]} 11. O-O
{[%clk 0:03:01.2]} 11... Nbd7 {[%clk 0:02:54]} 12. Re1 {[%clk 0:02:57.7]} 12...
Qc7 {[%clk 0:02:51.6]} 13. h3 {[%clk 0:02:54]} 13... Rb8 {[%clk 0:02:34.8]} 14.
Qc2 {[%clk 0:02:49.9]} 14... g5 {[%clk 0:02:17.2]} 15. Nf1 {[%clk 0:02:44]}
15... h6 {[%clk 0:02:06]} 16. Ng3 {[%clk 0:02:43.6]} 16... Ne5 {[%clk
0:02:06.1]} 17. Bd2 {[%clk 0:02:37.1]} 17... c4 {[%clk 0:01:59.9]} 18. a5 {[%clk
0:02:21.5]} 18... Bd7 {[%clk 0:01:40.6]} 19. Be3 {[%clk 0:02:07.3]} 19... g4
{[%clk 0:01:16.7]} 20. h4 {[%clk 0:02:03.8]} 20... h5 {[%clk 0:00:53.8]} 21. Bb6
{[%clk 0:02:02.7]} 21... Qc8 {[%clk 0:00:53.7]} 22. Nd1 {[%clk 0:02:02.7]} 22...
Ng6 {[%clk 0:00:52.3]} 23. Qxc4 {[%clk 0:01:45.4]} 23... Nxh4 {[%clk 0:00:51.8]}
24. Qb4 {[%clk 0:01:33.4]} 24... Ng6 {[%clk 0:00:44.3]} 25. Ne3 {[%clk
0:01:24.1]} 25... h4 {[%clk 0:00:40.8]} 26. Rac1 {[%clk 0:01:22.9]} 26... hxg3
{[%clk 0:00:33.8]} 27. Rxc8 {[%clk 0:01:20.3]} 27... gxf2+ {[%clk 0:00:33.2]}
28. Kxf2 {[%clk 0:01:20.2]} 28... Rbxc8 {[%clk 0:00:27.8]} 29. Bd3 {[%clk
0:01:09.9]} 29... Ne5 {[%clk 0:00:13.7]} 30. Bb1 {[%clk 0:01:05.1]} 30... Bb5
{[%clk 0:00:14.3]} 31. Nf5 {[%clk 0:00:58]} 31... Bd3 {[%clk 0:00:14.5]} 32. Kg1
{[%clk 0:00:34.6]} 32... Rc4 {[%clk 0:00:14.6]} 33. Qxd6 {[%clk 0:00:22.5]}
33... Bxb1 {[%clk 0:00:14.9]} 34. Nxg7 {[%clk 0:00:14.8]} 34... Kxg7 {[%clk
0:00:14.7]} 35. Rxb1 {[%clk 0:00:13.2]} 35... Rxe4 {[%clk 0:00:15.3]} 36. Rf1
{[%clk 0:00:10.4]} 36... Ned7 {[%clk 0:00:12.3]} 37. Qg3 {[%clk 0:00:07.2]}
37... R8e5 {[%clk 0:00:12.3]} 38. Bd8 {[%clk 0:00:05.8]} 38... Rxd5 {[%clk
0:00:11.2]} 39. Bxf6+ {[%clk 0:00:05]} 39... Nxf6 {[%clk 0:00:12.1]} 40. Qc3
{[%clk 0:00:05.1]} 40... Rde5 {[%clk 0:00:12.1]} 41. Qc7 {[%clk 0:00:04.5]}
41... Re2 {[%clk 0:00:11.2]} 42. Qxb7 {[%clk 0:00:03.9]} 42... Rd2 {[%clk
0:00:11]} 43. Qxa6 {[%clk 0:00:03.9]} 43... Re6 {[%clk 0:00:11.5]} 44. Qc4
{[%clk 0:00:03.2]} 44... Ree2 {[%clk 0:00:11.6]} 45. Qc6 {[%clk 0:00:03.4]}
45... Kg6 {[%clk 0:00:10.9]} 46. Qxf6+ {[%clk 0:00:02.9]} 46... Kh5 {[%clk
0:00:11.2]} 47. Rf5# {[%clk 0:00:02.5]} 1-0

[Event "*** Titled Tuesday Blitz"]
[Site "Chess.com"]
[Date "2020.10.20"]
[Round "6"]
[White "BigAl"]
[Black "Shubinkirill2003"]
[Result "0-1"]
[WhiteElo "2463"]
[BlackElo "2655"]
[TimeControl "180+1"]
[EndTime "11:09:03 PDT"]
[Termination "Shubinkirill2003 won by checkmate"]

1. Nf3 {[%clk 0:03:00.9]} 1... Nf6 {[%clk 0:02:59.9]} 2. g3 {[%clk 0:03:01.3]}
2... b5 {[%clk 0:02:59.7]} 3. Bg2 {[%clk 0:03:01.4]} 3... Bb7 {[%clk 0:03:00]}
4. O-O {[%clk 0:03:02.1]} 4... e6 {[%clk 0:03:00.4]} 5. d3 {[%clk 0:03:02.8]}
5... c5 {[%clk 0:03:00.7]} 6. e4 {[%clk 0:03:00.1]} 6... d6 {[%clk 0:03:00.7]}
7. a4 {[%clk 0:02:59.5]} 7... b4 {[%clk 0:03:00.3]} 8. Nbd2 {[%clk 0:02:58.3]}
8... Be7 {[%clk 0:03:00.5]} 9. e5 {[%clk 0:02:50.5]} 9... dxe5 {[%clk 0:03:00]}
10. Nxe5 {[%clk 0:02:50.9]} 10... Bxg2 {[%clk 0:03:00]} 11. Kxg2 {[%clk
0:02:51.8]} 11... Qd5+ {[%clk 0:02:58.4]} 12. Qf3 {[%clk 0:02:51.9]} 12... O-O
{[%clk 0:02:57.2]} 13. a5 {[%clk 0:02:45.1]} 13... a6 {[%clk 0:02:36.5]} 14.
Ndc4 {[%clk 0:02:44.1]} 14... Ra7 {[%clk 0:02:33.6]} 15. Bf4 {[%clk 0:02:36.6]}
15... Rc8 {[%clk 0:02:27.6]} 16. Rfe1 {[%clk 0:02:36.1]} 16... Nc6 {[%clk
0:02:19.3]} 17. Nb6 {[%clk 0:02:24]} 17... Qxf3+ {[%clk 0:02:18]} 18. Kxf3
{[%clk 0:02:19.6]} 18... Nxe5+ {[%clk 0:02:02.9]} 19. Bxe5 {[%clk 0:02:19.5]}
19... Rd8 {[%clk 0:02:01]} 20. b3 {[%clk 0:02:13.1]} 20... Nd5 {[%clk 0:01:59]}
21. h4 {[%clk 0:02:06.4]} 21... Rb7 {[%clk 0:01:54.7]} 22. Nc4 {[%clk
0:02:04.9]} 22... Bf6 {[%clk 0:01:46.4]} 23. Bxf6 {[%clk 0:01:58.2]} 23... gxf6
{[%clk 0:01:47.3]} 24. g4 {[%clk 0:01:50.9]} 24... Kg7 {[%clk 0:01:45.5]} 25. g5
{[%clk 0:01:46.5]} 25... f5 {[%clk 0:01:41.4]} 26. h5 {[%clk 0:01:41.2]} 26...
h6 {[%clk 0:01:35.1]} 27. Rg1 {[%clk 0:01:39.9]} 27... hxg5 {[%clk 0:01:34.7]}
28. Rxg5+ {[%clk 0:01:40]} 28... Kh6 {[%clk 0:01:35.6]} 29. Rag1 {[%clk
0:01:38.7]} 29... Nf6 {[%clk 0:01:35.3]} 30. R5g2 {[%clk 0:01:22.8]} 30... Ng4
{[%clk 0:01:21.7]} 31. Ne3 {[%clk 0:01:22.1]} 31... Ne5+ {[%clk 0:01:13.8]} 32.
Kf4 {[%clk 0:01:12.2]} 32... f6 {[%clk 0:01:13.4]} 33. Nc4 {[%clk 0:01:09.7]}
33... Rd4+ {[%clk 0:01:05.8]} 34. Ke3 {[%clk 0:01:10.1]} 34... f4+ {[%clk
0:01:04.1]} 35. Kd2 {[%clk 0:01:09]} 35... Nf3+ {[%clk 0:01:01.7]} 36. Ke2
{[%clk 0:01:07.5]} 36... Nxg1+ {[%clk 0:01:01.6]} 37. Rxg1 {[%clk 0:01:08.4]}
37... Kxh5 {[%clk 0:01:00.8]} 38. Kf3 {[%clk 0:01:08.9]} 38... e5 {[%clk
0:00:55.9]} 39. Nd2 {[%clk 0:01:04.7]} 39... f5 {[%clk 0:00:49.6]} 40. Rg8
{[%clk 0:00:59.3]} 40... Re7 {[%clk 0:00:44.6]} 41. Nc4 {[%clk 0:00:54.6]} 41...
e4+ {[%clk 0:00:41.5]} 42. dxe4 {[%clk 0:00:52.4]} 42... fxe4+ {[%clk
0:00:41.5]} 43. Ke2 {[%clk 0:00:39.1]} 43... e3 {[%clk 0:00:39.3]} 44. f3 {[%clk
0:00:37]} 44... Kh6 {[%clk 0:00:33.9]} 45. Rc8 {[%clk 0:00:34.1]} 45... Rg7
{[%clk 0:00:31.4]} 46. Rc6+ {[%clk 0:00:31.4]} 46... Rg6 {[%clk 0:00:31.4]} 47.
Rxc5 {[%clk 0:00:31.4]} 47... Rg2+ {[%clk 0:00:30.3]} 48. Ke1 {[%clk 0:00:32]}
48... Rxc2 {[%clk 0:00:29.3]} 49. Rc6+ {[%clk 0:00:31.4]} 49... Kg5 {[%clk
0:00:28.8]} 50. Rc5+ {[%clk 0:00:31.6]} 50... Kh4 {[%clk 0:00:28.5]} 51. Rf5
{[%clk 0:00:26.7]} 51... Kg3 {[%clk 0:00:27.5]} 52. Rg5+ {[%clk 0:00:14.6]}
52... Kxf3 {[%clk 0:00:26.7]} 53. Ne5+ {[%clk 0:00:11.2]} 53... Ke4 {[%clk
0:00:26.6]} 54. Nc4 {[%clk 0:00:09.7]} 54... Rc1+ {[%clk 0:00:26.3]} 55. Ke2
{[%clk 0:00:10.2]} 55... f3# {[%clk 0:00:27.2]} 0-1

[Event "*** Titled Tuesday Blitz"]
[Site "Chess.com"]
[Date "2020.10.20"]
[Round "6"]
[White "northridgehawk"]
[Black "alejanchess73"]
[Result "1-0"]
[WhiteElo "2241"]
[BlackElo "2426"]
[TimeControl "180+1"]
[EndTime "11:09:04 PDT"]
[Termination "northridgehawk won by checkmate"]

1. e4 {[%clk 0:03:00.9]} 1... e6 {[%clk 0:02:59.7]} 2. Nc3 {[%clk 0:03:00.3]}
2... d5 {[%clk 0:02:59.8]} 3. d4 {[%clk 0:02:58.7]} 3... Bb4 {[%clk 0:02:58.5]}
4. Ne2 {[%clk 0:02:56.2]} 4... Nc6 {[%clk 0:02:50.7]} 5. a3 {[%clk 0:02:52.7]}
5... Be7 {[%clk 0:02:43.7]} 6. Be3 {[%clk 0:02:49.1]} 6... Nf6 {[%clk
0:02:42.8]} 7. e5 {[%clk 0:02:45.3]} 7... Nd7 {[%clk 0:02:42.8]} 8. f4 {[%clk
0:02:44.1]} 8... b6 {[%clk 0:02:40]} 9. Qd2 {[%clk 0:02:42.9]} 9... Bb7 {[%clk
0:02:40]} 10. O-O-O {[%clk 0:02:41.5]} 10... g6 {[%clk 0:02:38.2]} 11. g4 {[%clk
0:02:40.3]} 11... Na5 {[%clk 0:02:38]} 12. Ng3 {[%clk 0:02:39.7]} 12... c5
{[%clk 0:02:33.8]} 13. f5 {[%clk 0:02:39.7]} 13... cxd4 {[%clk 0:02:28.9]} 14.
Bxd4 {[%clk 0:02:37.9]} 14... Bg5 {[%clk 0:02:28.4]} 15. Be3 {[%clk 0:02:37.3]}
15... Bxe3 {[%clk 0:02:28.5]} 16. Qxe3 {[%clk 0:02:38.2]} 16... Qc7 {[%clk
0:02:23.8]} 17. fxe6 {[%clk 0:02:27.8]} 17... fxe6 {[%clk 0:02:23.4]} 18. Nb5
{[%clk 0:02:05.2]} 18... Qxe5 {[%clk 0:02:20.7]} 19. Qxe5 {[%clk 0:02:04.3]}
19... Nxe5 {[%clk 0:02:21.4]} 20. Nc7+ {[%clk 0:02:00.3]} 20... Ke7 {[%clk
0:02:19.1]} 21. Nxa8 {[%clk 0:02:01.2]} 21... Rxa8 {[%clk 0:02:15.8]} 22. h3
{[%clk 0:01:58.6]} 22... Rc8 {[%clk 0:02:14.4]} 23. Bg2 {[%clk 0:01:57.1]} 23...
Nac4 {[%clk 0:02:02.9]} 24. Rhe1 {[%clk 0:01:55.6]} 24... Kd6 {[%clk 0:01:18.5]}
25. Ne4+ {[%clk 0:01:52.9]} 25... Ke7 {[%clk 0:01:09.7]} 26. Nc3 {[%clk
0:01:50.6]} 26... a6 {[%clk 0:00:53.4]} 27. Na4 {[%clk 0:01:40.9]} 27... b5
{[%clk 0:00:49.7]} 28. Nb6 {[%clk 0:01:35.2]} 28... Nxb6 {[%clk 0:00:48.2]} 29.
Rxe5 {[%clk 0:01:34.3]} 29... Nc4 {[%clk 0:00:39.7]} 30. Re2 {[%clk 0:01:31.9]}
30... Kd6 {[%clk 0:00:36.9]} 31. Kb1 {[%clk 0:01:25.6]} 31... Re8 {[%clk
0:00:36.3]} 32. Ka2 {[%clk 0:01:21.5]} 32... Nb6 {[%clk 0:00:36.1]} 33. Rf1
{[%clk 0:01:13.4]} 33... Re7 {[%clk 0:00:33.6]} 34. Rf6 {[%clk 0:01:12.4]} 34...
Nd7 {[%clk 0:00:32]} 35. Rf1 {[%clk 0:01:11.3]} 35... Bc6 {[%clk 0:00:31.9]} 36.
b3 {[%clk 0:01:10]} 36... e5 {[%clk 0:00:32.2]} 37. Rd1 {[%clk 0:01:07.4]} 37...
e4 {[%clk 0:00:27.8]} 38. Rxe4 {[%clk 0:01:04.5]} 38... Rxe4 {[%clk 0:00:23.7]}
39. Bxe4 {[%clk 0:01:05.4]} 39... Ke5 {[%clk 0:00:24.4]} 40. Bd3 {[%clk
0:01:04.3]} 40... Nc5 {[%clk 0:00:24.6]} 41. Kb2 {[%clk 0:01:01.8]} 41... Ne4
{[%clk 0:00:24.5]} 42. Re1 {[%clk 0:00:59.7]} 42... Kf4 {[%clk 0:00:24.9]} 43.
Rf1+ {[%clk 0:00:55.6]} 43... Kg3 {[%clk 0:00:25]} 44. Rf7 {[%clk 0:00:56]}
44... Kxh3 {[%clk 0:00:24.2]} 45. Rxh7+ {[%clk 0:00:56.1]} 45... Kxg4 {[%clk
0:00:24.6]} 46. Rg7 {[%clk 0:00:54.4]} 46... Kg5 {[%clk 0:00:24.4]} 47. Ra7
{[%clk 0:00:51.1]} 47... Kf4 {[%clk 0:00:22.9]} 48. Rxa6 {[%clk 0:00:51]} 48...
Be8 {[%clk 0:00:23.6]} 49. Re6 {[%clk 0:00:49.8]} 49... Bf7 {[%clk 0:00:23.7]}
50. Re7 {[%clk 0:00:49.4]} 50... Bg8 {[%clk 0:00:17.3]} 51. Bxb5 {[%clk
0:00:49.2]} 51... g5 {[%clk 0:00:16.9]} 52. Rg7 {[%clk 0:00:49.1]} 52... Be6
{[%clk 0:00:16.6]} 53. a4 {[%clk 0:00:48.5]} 53... g4 {[%clk 0:00:15.8]} 54. a5
{[%clk 0:00:48.6]} 54... g3 {[%clk 0:00:15.9]} 55. a6 {[%clk 0:00:48.5]} 55...
Ng5 {[%clk 0:00:15.8]} 56. Bf1 {[%clk 0:00:47]} 56... g2 {[%clk 0:00:13.1]} 57.
Bxg2 {[%clk 0:00:46.3]} 57... d4 {[%clk 0:00:14]} 58. a7 {[%clk 0:00:45.7]}
58... d3 {[%clk 0:00:14.4]} 59. a8=Q {[%clk 0:00:44.9]} 59... d2 {[%clk
0:00:13.6]} 60. Qa4+ {[%clk 0:00:44.1]} 60... Kg3 {[%clk 0:00:13.6]} 61. Rxg5+
{[%clk 0:00:42.4]} 61... Kf2 {[%clk 0:00:14.5]} 62. Qd4+ {[%clk 0:00:41.7]}
62... Ke1 {[%clk 0:00:13.6]} 63. Re5+ {[%clk 0:00:41.6]} 63... Kd1 {[%clk
0:00:11.1]} 64. Bf3# {[%clk 0:00:41.8]} 1-0

[Event "*** Titled Tuesday Blitz"]
[Site "Chess.com"]
[Date "2020.10.20"]
[Round "6"]
[White "BocharovD"]
[Black "Leonid_Starozhilov"]
[Result "1-0"]
[WhiteElo "2802"]
[BlackElo "2629"]
[TimeControl "180+1"]
[EndTime "11:09:05 PDT"]
[Termination "BocharovD won by resignation"]

1. c4 {[%clk 0:02:58.4]} 1... Nf6 {[%clk 0:02:59.9]} 2. g3 {[%clk 0:02:57.8]}
2... g6 {[%clk 0:02:59.9]} 3. Bg2 {[%clk 0:02:57.8]} 3... Bg7 {[%clk 0:03:00.6]}
4. Nc3 {[%clk 0:02:58.3]} 4... O-O {[%clk 0:03:01.3]} 5. d4 {[%clk 0:02:58]}
5... d6 {[%clk 0:03:01.9]} 6. Nf3 {[%clk 0:02:57.9]} 6... c6 {[%clk 0:03:02.4]}
7. O-O {[%clk 0:02:57.6]} 7... Bf5 {[%clk 0:03:02.8]} 8. Ne1 {[%clk 0:02:45.9]}
8... d5 {[%clk 0:02:36.3]} 9. Qb3 {[%clk 0:02:40.7]} 9... Qd7 {[%clk 0:02:19.7]}
10. Bg5 {[%clk 0:02:25.5]} 10... Be6 {[%clk 0:01:57.1]} 11. cxd5 {[%clk
0:02:09.7]} 11... Nxd5 {[%clk 0:01:53.5]} 12. Qd1 {[%clk 0:02:09.5]} 12... Nb6
{[%clk 0:01:38.3]} 13. Nf3 {[%clk 0:02:04.7]} 13... Na6 {[%clk 0:01:33.9]} 14.
Qc1 {[%clk 0:02:03.5]} 14... Nd5 {[%clk 0:01:24.3]} 15. e4 {[%clk 0:01:51.9]}
15... Nxc3 {[%clk 0:01:16.7]} 16. bxc3 {[%clk 0:01:52.8]} 16... Bc4 {[%clk
0:01:16.5]} 17. Rd1 {[%clk 0:01:50.8]} 17... Nc7 {[%clk 0:01:14.9]} 18. Bh6
{[%clk 0:01:22]} 18... f6 {[%clk 0:01:13.7]} 19. Bxg7 {[%clk 0:01:19.7]} 19...
Kxg7 {[%clk 0:01:14.6]} 20. Qe3 {[%clk 0:01:20.2]} 20... Rad8 {[%clk 0:01:06.6]}
21. a4 {[%clk 0:01:18.7]} 21... b6 {[%clk 0:01:02.7]} 22. Nd2 {[%clk 0:01:11.2]}
22... Bf7 {[%clk 0:01:02.6]} 23. a5 {[%clk 0:01:09.7]} 23... b5 {[%clk
0:01:00.3]} 24. Rab1 {[%clk 0:00:47.9]} 24... Qd6 {[%clk 0:01:00.3]} 25. Nb3
{[%clk 0:00:45.4]} 25... Bxb3 {[%clk 0:00:59.5]} 26. Rxb3 {[%clk 0:00:44.7]}
26... e6 {[%clk 0:00:34.4]} 27. Rbb1 {[%clk 0:00:42.5]} 27... Qe7 {[%clk
0:00:30.2]} 28. h4 {[%clk 0:00:32.1]} 28... a6 {[%clk 0:00:30.1]} 29. Rd2 {[%clk
0:00:30.6]} 29... Rd7 {[%clk 0:00:28.5]} 30. Bf3 {[%clk 0:00:25.9]} 30... Rfd8
{[%clk 0:00:28.2]} 31. Kg2 {[%clk 0:00:25.8]} 31... Qa3 {[%clk 0:00:27.4]} 32.
h5 {[%clk 0:00:22.8]} 32... g5 {[%clk 0:00:25.7]} 33. e5 {[%clk 0:00:20.6]}
33... Nd5 {[%clk 0:00:19]} 34. exf6+ {[%clk 0:00:19.8]} 34... Kxf6 {[%clk
0:00:18.3]} 35. Qe5+ {[%clk 0:00:19.6]} 35... Kf7 {[%clk 0:00:18.8]} 36. Qxg5
{[%clk 0:00:18]} 36... Qe7 {[%clk 0:00:18.8]} 37. Qh6 {[%clk 0:00:17.7]} 37...
Kg8 {[%clk 0:00:14.7]} 38. Re1 {[%clk 0:00:16.9]} 38... Rd6 {[%clk 0:00:14.9]}
39. Re5 {[%clk 0:00:16.8]} 39... Kh8 {[%clk 0:00:13.8]} 40. Bxd5 {[%clk
0:00:16.1]} 40... cxd5 {[%clk 0:00:12.9]} 41. Rde2 {[%clk 0:00:16.5]} 41... Qf7
{[%clk 0:00:09.4]} 42. Rxe6 {[%clk 0:00:15.6]} 42... R6d7 {[%clk 0:00:06.8]} 43.
Rf6 {[%clk 0:00:15]} 43... Qg7 {[%clk 0:00:06.7]} 44. Qxg7+ {[%clk 0:00:15.5]}
44... Kxg7 {[%clk 0:00:07.6]} 45. Rxa6 {[%clk 0:00:15.9]} 45... Rc7 {[%clk
0:00:07.7]} 46. Re3 {[%clk 0:00:16.4]} 46... Rdc8 {[%clk 0:00:08.2]} 47. Rb6
{[%clk 0:00:16.7]} 47... Rxc3 {[%clk 0:00:08.9]} 48. Rxc3 {[%clk 0:00:16.9]}
48... Rxc3 {[%clk 0:00:09.8]} 49. Rxb5 {[%clk 0:00:17.6]} 49... Rb3 {[%clk
0:00:10.7]} 50. Rxd5 {[%clk 0:00:18.1]} 50... Rb5 {[%clk 0:00:11.6]} 51. Rxb5
{[%clk 0:00:18.1]} 1-0